bitfinex/quotes_SOLUSD_20250908
["timestamp","ask_amount","ask_price","bid_price","bid_amount"]
[1757341841840,4.66004939,214.59,214.57,36.58]
[1757341842440,16.98017288,214.59,214.54,26.0]
[1757341842613,16.98017288,214.59,214.55,36.58]
[1757341843004,13.59559401,214.57,214.52,0.5]
[1757341843208,13.59559401,214.57,214.53,36.58]
[1757341843449,13.59559401,214.55,214.53,36.58]
[1757341843740,14.26559401,214.55,214.53,36.58]
[1757341844118,4.66113545,214.54,214.53,36.58]
[1757341846218,4.66070096,214.56,214.53,36.58]
[1757341847124,4.66070096,214.56,214.53,37.28]
[1757341848025,4.66048375,214.57,214.53,37.28]
[1757341848225,16.31169314,214.57,214.52,0.5]
[1757341848527,0.67,214.56,214.53,36.58]
[1757341848719,13.59559401,214.56,214.53,36.58]
[1757341849031,16.31169314,214.57,214.53,36.58]
[1757341849243,16.98169314,214.57,214.53,36.58]
[1757341849931,12.32120939,214.57,214.53,36.58]
[1757341850322,4.66026656,214.58,214.53,36.58]
[1757341850519,5.33026656,214.58,214.53,37.28]
[1757341850720,16.98093297,214.58,214.53,37.28]
[1757341850915,16.31093297,214.58,214.54,0.7]
[1757341851230,16.31093297,214.58,214.55,0.7]
[1757341851429,16.98093297,214.58,214.56,36.58]
[1757341851931,16.31093297,214.58,214.56,36.58]
[1757341852141,16.98093297,214.58,214.56,36.58]
[1757341852730,16.31093297,214.58,214.56,36.58]
[1757341852913,0.67,214.57,214.52,0.5]
[1757341853115,0.67,214.57,214.53,36.58]
[1757341853314,16.31093297,214.58,214.52,1.2]
[1757341853315,14.26559401,214.56,214.52,0.5]
[1757341853627,14.26559401,214.56,214.53,36.58]
[1757341853810,0.67,214.55,214.53,36.58]
[1757341854010,0.67,214.55,214.52,0.5]
[1757341854209,4.66113545,214.54,214.53,36.58]
[1757341855213,4.66113545,214.54,214.53,37.28]
[1757341855413,4.66113545,214.54,214.53,36.58]
[1757341856242,16.31268615,214.56,214.53,36.58]
[1757341856746,16.98268615,214.56,214.53,36.58]
[1757341857255,17.04268615,214.56,214.53,36.58]
[1757341857554,0.06,214.56,214.52,0.5]
[1757341857727,0.06,214.56,214.54,36.58]
[1757341857914,13.65559401,214.56,214.55,36.58]
[1757341858119,18.31629497,214.56,214.55,36.58]
[1757341858638,4.72070096,214.56,214.55,36.58]
[1757341859037,17.04245338,214.56,214.52,0.5]
[1757341859224,29.96804739,214.56,214.55,36.58]
[1757341859834,30.63804739,214.56,214.55,36.58]
[1757341860936,4.72070096,214.56,214.55,36.58]
[1757341862632,0.06,214.56,214.55,37.28]
[1757341862837,0.06,214.56,214.55,36.58]
[1757341863434,0.06,214.56,214.55,37.28]
[1757341863645,72.96,214.59,214.58,26.0]
[1757341863646,0.06,214.59,214.58,26.0]
[1757341863940,0.06,214.6,214.58,26.7]
[1757341864144,0.06,214.6,214.59,37.32]
[1757341865140,0.06,214.6,214.59,50.91559401]
[1757341865846,0.06,214.6,214.59,50.89559401]
[1757341867752,0.06,214.6,214.59,50.87559401]
[1757341869239,0.06,214.6,214.59,51.37559401]
[1757341869729,0.06,214.6,214.59,37.78]
[1757341869928,0.06,214.61,214.59,42.44004939]
[1757341870131,13.59559401,214.72,214.64,4.65896384]
[1757341870334,0.69,214.73,214.65,63.28]
[1757341870551,13.59559401,214.76,214.65,63.28]
[1757341870746,0.69,214.72,214.66,13.97200941]
[1757341871045,0.69,214.72,214.67,36.62]
[1757341871451,0.69,214.75,214.68,0.66]
[1757341871648,0.69,214.75,214.69,26.0]
[1757341871850,0.69,214.74,214.7,36.6]
[1757341872052,13.59559401,214.76,214.71,0.66]
[1757341872254,14.28559401,214.76,214.71,0.66]
[1757341872458,13.59559401,214.77,214.7,36.6]
[1757341872753,13.59559401,214.77,214.71,0.66]
[1757341873056,0.69,214.76,214.72,36.6]
[1757341873256,0.69,214.76,214.73,36.6]
[1757341873645,0.69,214.75,214.69,26.66]
[1757341873855,13.59559401,214.74,214.66,13.97200941]
[1757341874053,0.69,214.73,214.67,36.6]
[1757341874256,4.65722801,214.72,214.67,36.6]
[1757341874557,4.65701826,214.73,214.68,0.66]
[1757341874765,4.65701826,214.73,214.69,0.66]
[1757341874961,5.34701826,214.73,214.7,36.6]
[1757341875144,0.69,214.72,214.7,36.6]
[1757341876153,0.69,214.71,214.67,26.0]
[1757341876357,5.34760535,214.71,214.68,36.58]
[1757341876665,4.65760535,214.71,214.68,36.58]
[1757341878159,4.65760535,214.71,214.68,37.24]
[1757341878360,16.29953895,214.73,214.68,37.24]
[1757341878562,16.98953895,214.73,214.68,36.58]
[1757341878762,0.69,214.72,214.68,36.58]
[1757341879368,16.29953895,214.73,214.68,37.24]
[1757341879570,4.65744492,214.71,214.68,36.58]
[1757341880264,4.65744492,214.71,214.66,40.63200941]
[1757341880450,4.65744492,214.71,214.67,63.22]
[1757341880652,5.34744492,214.71,214.67,37.64252782]
[1757341880867,5.34744492,214.71,214.68,36.56]
[1757341881050,16.30105723,214.71,214.67,26.0]
[1757341881378,0.69,214.7,214.68,36.56]
[1757341881585,4.6578788,214.69,214.68,36.56]
[1757341881754,4.6578788,214.69,214.67,26.0]
[1757341881755,5.3478788,214.69,214.67,26.0]
[1757341881945,5.3478788,214.69,214.63,4.38153093]
[1757341881946,0.69,214.68,214.63,0.66]
[1757341882270,16.3025758,214.69,214.64,51.19331098]
[1757341882446,16.3025758,214.69,214.65,30.34]
[1757341882647,4.6578788,214.69,214.65,31.0]
[1757341882877,4.6578788,214.69,214.66,0.66]
[1757341883268,4.65762999,214.71,214.68,26.0]
[1757341883564,72.9,214.73,214.67,0.66]
[1757341883565,4.65679426,214.74,214.69,62.56]
[1757341883765,4.65679426,214.74,214.7,0.66]
[1757341884545,13.59559401,214.72,214.71,36.56]
[1757341884745,14.28559401,214.72,214.71,36.56]
[1757341884975,0.69,214.72,214.71,36.56]
[1757341885677,5.34722801,214.72,214.71,36.56]
[1757341886574,4.65722801,214.72,214.71,36.56]
[1757341886753,5.34722801,214.72,214.71,36.56]
[1757341887259,4.65722801,214.72,214.71,36.56]
[1757341887662,16.29877991,214.74,214.65,26.0]
[1757341887876,16.29877991,214.74,214.69,26.0]
[1757341888172,16.98877991,214.74,214.7,36.54]
[1757341888554,16.29877991,214.74,214.7,37.2]
[1757341888761,16.29877991,214.74,214.7,36.54]
[1757341888976,16.29877991,214.74,214.7,37.2]
[1757341889360,4.7165298,214.76,214.73,26.0]
[1757341889565,4.7165298,214.76,214.71,0.66]
[1757341889566,4.7165298,214.76,214.74,36.54]
[1757341889960,0.69,214.75,214.69,0.66]
[1757341890156,16.35743127,214.76,214.73,26.0]
[1757341890157,4.7165298,214.76,214.73,26.0]
[1757341890370,4.7165298,214.76,214.74,37.2]
[1757341890672,0.06,214.76,214.75,0.66]
[1757341890878,0.06,214.76,214.74,36.54]
[1757341891066,0.06,214.76,214.75,26.0]
[1757341891261,0.06,214.76,214.75,62.54]
[1757341891568,0.06,214.76,214.75,63.2]
[1757341891759,0.06,214.76,214.75,62.54]
[1757341891961,0.06,214.76,214.75,26.0]
[1757341892159,0.06,214.76,214.75,36.54]
[1757341892464,0.06,214.76,214.72,26.0]
[1757341892669,0.75,214.76,214.73,36.54]
[1757341892864,5.34657741,214.75,214.74,36.54]
[1757341893177,5.34657741,214.75,214.72,26.0]
[1757341893365,5.34657741,214.75,214.74,36.54]
[1757341893964,16.98802094,214.75,214.72,26.0]
[1757341894172,0.69,214.74,214.73,36.54]
[1757341894480,16.29802094,214.75,214.73,36.54]
[1757341894780,0.69,214.74,214.73,36.54]
[1757341894974,4.65679426,214.74,214.73,37.2]
[1757341895561,4.65679426,214.74,214.73,36.54]
[1757341896180,4.65659657,214.75,214.73,36.54]
[1757341896371,5.30659657,214.75,214.69,34.18]
[1757341896574,4.65659657,214.75,214.7,37.2]
[1757341896779,4.65659657,214.75,214.71,0.66]
[1757341896976,0.06,214.76,214.72,0.66]
[1757341896977,4.71636058,214.76,214.72,0.66]
[1757341897182,4.71636058,214.76,214.73,36.54]
[1757341897681,4.71636058,214.76,214.74,0.66]
[1757341897869,0.06,214.76,214.75,0.66]
[1757341898186,0.06,214.76,214.73,36.54]
[1757341898187,0.06,214.76,214.73,26.0]
[1757341898363,0.06,214.76,214.75,36.54]
[1757341898769,0.06,214.76,214.75,37.2]
[1757341899595,0.06,214.76,214.75,36.54]
[1757341899889,0.06,214.76,214.75,37.2]
[1757341900660,0.06,214.76,214.75,36.54]
[1757341901187,0.06,214.76,214.75,37.2]
[1757341902990,0.06,214.76,214.75,42.50527675]
[1757341903585,0.06,214.76,214.75,47.16185416]
[1757341904475,0.06,214.79,214.78,26.0]
[1757341904676,0.06,214.79,214.78,62.54]
[1757341904881,0.06,214.79,214.78,63.2]
[1757341905384,0.06,214.79,214.78,62.54]
[1757341905578,0.06,214.79,214.78,26.66]
[1757341905776,0.06,214.79,214.78,63.2]
[1757341905979,0.06,214.79,214.78,26.0]
[1757341906183,0.06,214.79,214.78,62.54]
[1757341906572,0.71,214.79,214.78,62.54]
[1757341906979,0.06,214.79,214.78,62.54]
[1757341908281,0.71,214.79,214.78,26.0]
[1757341908592,0.71,214.79,214.74,26.0]
[1757341908772,0.06,214.79,214.78,26.0]
[1757341909095,0.06,214.79,214.78,62.74]
[1757341909569,0.06,214.79,214.78,39.96355512]
[1757341909763,0.06,214.79,214.78,36.76]
[1757341909983,0.06,214.79,214.78,37.42]
[1757341910192,0.06,214.79,214.78,42.07592699]
[1757341910576,0.06,214.79,214.78,53.71258912]
[1757341911481,0.06,214.79,214.78,16.95258912]
[1757341911671,0.06,214.79,214.78,49.05666213]
[1757341912087,0.06,214.79,214.78,53.71258912]
[1757341912283,0.65,214.87,214.81,26.0]
[1757341912476,0.65,214.87,214.85,26.0]
[1757341912682,0.65,214.87,214.86,36.76]
[1757341912892,16.28740285,214.89,214.86,36.76]
[1757341913590,0.65,214.88,214.86,36.76]
[1757341913998,0.65,214.87,214.86,36.76]
[1757341915494,5.30397682,214.87,214.86,36.76]
[1757341916090,5.30397682,214.87,214.85,26.0]
[1757341916398,16.28891887,214.87,214.86,36.72]
[1757341916899,16.93891887,214.87,214.86,36.72]
[1757341917092,5.30397682,214.87,214.86,36.72]
[1757341917473,4.65397682,214.87,214.83,26.0]
[1757341917699,4.65397682,214.87,214.86,26.0]
[1757341917898,4.65397682,214.87,214.86,62.7]
[1757341918087,4.65379756,214.88,214.86,62.7]
[1757341918284,0.65,214.88,214.86,62.7]
[1757341918786,4.65332712,214.9,214.86,62.7]
[1757341919102,0.65,214.89,214.86,62.7]
[1757341919783,5.30375004,214.89,214.87,36.7]
[1757341919984,4.65375004,214.89,214.87,36.7]
[1757341920187,4.65375004,214.89,214.86,26.0]
[1757341920394,5.30375004,214.89,214.87,36.68]
[1757341920591,0.65,214.88,214.87,36.68]
[1757341920902,0.65,214.93,214.89,26.0]
[1757341921105,0.65,214.92,214.89,26.0]
[1757341921309,0.65,214.91,214.9,36.66]
[1757341921606,13.59559401,214.94,214.9,36.74]
[1757341921781,4.65332712,214.9,214.88,26.0]
[1757341921987,23.26014142,214.96,214.86,26.0]
[1757341921988,0.65,214.97,214.92,26.0]
[1757341922184,0.65,214.96,214.95,26.0]
[1757341922509,0.65,214.98,214.95,36.86]
[1757341922701,0.65,214.97,214.95,36.86]
[1757341923002,13.59559401,214.99,214.95,36.86]
[1757341923209,0.65,214.99,214.95,36.86]
[1757341923506,0.65,214.98,214.95,36.86]
[1757341923991,4.65117981,215.0,214.95,36.86]
[1757341924196,14.24559401,214.99,214.96,36.84]
[1757341924397,0.65,214.98,214.96,36.84]
[1757341924595,18.10333775,214.97,214.96,36.84]
[1757341924800,18.75333775,214.97,214.96,36.84]
[1757341925108,14.24559401,214.97,214.96,36.84]
[1757341925801,18.89740589,214.97,214.96,36.84]
[1757341926193,23.40514963,214.97,214.96,36.84]
[1757341926394,18.89740589,214.97,214.96,36.84]
[1757341926895,23.40514963,214.97,214.96,36.84]
[1757341927406,35.03467933,214.97,214.96,36.84]
[1757341928587,72.9,214.96,214.89,26.0]
[1757341928898,72.9,214.96,214.9,36.84]
[1757341928899,13.59559401,214.93,214.9,36.84]
[1757341929098,13.59559401,214.94,214.9,36.84]
[1757341929407,0.66,214.93,214.9,36.84]
[1757341929805,4.6531106,214.91,214.84,45.28362902]
[1757341930008,16.94588711,214.91,214.88,26.0]
[1757341930191,16.94588711,214.91,214.89,36.8]
[1757341930398,30.54148112,214.91,214.9,36.8]
[1757341931112,18.90870461,214.91,214.9,36.8]
[1757341931609,13.59559401,214.9,214.83,13.9603062]
[1757341931785,13.59559401,214.88,214.77,11.63995882]
[1757341931990,17.13638658,214.88,214.82,36.8]
[1757341932215,13.59559401,214.86,214.82,36.8]
[1757341932504,0.66,214.85,214.83,36.8]
[1757341932884,7.74528763,215.16,214.83,36.8]
[1757341932885,13.9603062,214.95,214.86,26.0]
[1757341933085,18.24805516,214.94,214.87,37.47]
[1757341933285,4.65225313,214.95,214.91,26.0]
[1757341933490,4.65225313,214.95,214.92,36.86]
[1757341933705,4.65225313,214.95,214.91,26.67]
[1757341933907,4.65225313,214.95,214.85,0.5]
[1757341933908,13.59559401,214.95,214.92,36.86]
[1757341934208,13.59559401,214.95,214.93,36.86]
[1757341934506,0.06,214.97,214.94,0.67]
[1757341934810,0.06,214.97,214.96,26.0]
[1757341935202,0.06,214.97,214.96,63.53]
[1757341935795,0.06,214.97,214.96,26.0]
[1757341935999,0.06,214.97,214.96,62.84]
[1757341936310,13.59559401,214.96,214.92,13.59559401]
[1757341936508,13.59559401,214.96,214.93,36.86]
[1757341936690,0.66,214.96,214.93,36.86]
[1757341937186,14.25559401,214.95,214.94,36.86]
[1757341938016,18.90783871,214.95,214.94,36.86]
[1757341938527,4.6522447,214.95,214.94,36.86]
[1757341939388,16.94285647,214.95,214.94,36.84]
[1757341940628,13.59559401,214.94,214.9,33.48]
[1757341940801,0.66,214.93,214.9,33.48]
[1757341941004,16.28285647,214.95,214.91,36.84]
[1757341941425,0.66,214.94,214.91,36.84]
[1757341942008,5.31267761,214.93,214.91,36.84]
[1757341942210,4.65267761,214.93,214.91,36.84]
[1757341943620,4.65267761,214.93,214.92,36.82]
[1757341944024,4.6522447,214.95,214.92,36.82]
[1757341944228,16.94285647,214.95,214.92,36.82]
[1757341945024,4.6522447,214.95,214.92,36.82]
[1757341945815,4.6522447,214.95,214.93,36.8]
[1757341945816,16.94285647,214.95,214.93,36.8]
[1757341946127,16.94285647,214.95,214.94,36.8]
[1757341947226,16.28285647,214.95,214.94,36.8]
[1757341947521,16.94285647,214.95,214.9,33.48]
[1757341947719,0.66,214.94,214.91,36.8]
[1757341948309,0.66,214.94,214.9,33.48]
[1757341948520,0.66,214.94,214.91,36.76]
[1757341948812,16.94285647,214.95,214.91,36.76]
[1757341949119,0.66,214.94,214.91,36.76]
[1757341950131,16.28285647,214.95,214.92,36.74]
[1757341950329,16.94285647,214.95,214.93,36.74]
[1757341950540,0.66,214.94,214.88,26.0]
[1757341950833,16.34285647,214.95,214.89,36.74]
[1757341950834,13.59559401,214.91,214.89,36.74]
[1757341951010,14.25559401,214.91,214.9,36.74]
[1757341951210,4.6531106,214.91,214.9,36.74]
[1757341951638,4.6528545,214.93,214.9,36.74]
[1757341952723,4.6524738,214.94,214.9,36.74]
[1757341953036,5.3124738,214.94,214.9,36.74]
[1757341953533,4.6524738,214.94,214.91,0.67]
[1757341955123,11.69069293,214.95,214.91,0.67]
[1757341955328,0.66,214.93,214.88,26.0]
[1757341955631,0.66,214.93,214.89,36.72]
[1757341955812,14.31559401,214.93,214.89,36.72]
[1757341957736,17.00512935,214.92,214.85,26.5]
[1757341958036,14.31559401,214.91,214.86,36.7]
[1757341958229,0.72,214.9,214.86,36.7]
[1757341958638,0.72,214.9,214.85,1.16]
[1757341958836,0.72,214.9,214.87,36.7]
[1757341959017,4.65354367,214.89,214.87,36.7]
[1757341959640,4.65354367,214.89,214.85,1.16]
[1757341959824,4.65354367,214.89,214.86,36.68]
[1757341960236,4.65354367,214.89,214.87,36.68]
[1757341960621,4.65354367,214.89,214.88,36.68]
[1757341961927,4.6528941,214.92,214.88,37.34]
[1757341962228,4.6528941,214.92,214.89,0.66]
[1757341962630,4.6528941,214.92,214.88,36.68]
[1757341962830,4.6528941,214.92,214.88,37.34]
[1757341963055,11.63163809,214.94,214.88,37.34]
[1757341963352,16.28409924,214.94,214.88,37.34]
[1757341964149,16.28409924,214.94,214.89,36.66]
[1757341964150,17.19638658,214.93,214.89,36.66]
[1757341964322,13.59559401,214.91,214.85,0.5]
[1757341964527,2.88079257,214.9,214.86,36.66]
[1757341964746,0.72,214.9,214.86,36.66]
[1757341964942,0.72,214.89,214.86,36.66]
[1757341965134,0.72,214.88,214.86,36.66]
[1757341965455,16.28740285,214.89,214.86,36.66]
[1757341965743,0.72,214.88,214.86,36.66]
[1757341965943,0.72,214.88,214.87,36.7]
[1757341966150,16.28740285,214.89,214.87,36.7]
[1757341966352,17.00740285,214.89,214.85,0.5]
[1757341966550,0.72,214.89,214.85,0.5]
[1757341966750,0.72,214.93,214.86,37.34]
[1757341966944,25.22750403,214.93,214.87,0.66]
[1757341967246,11.63191002,214.93,214.87,0.66]
[1757341967832,11.63191002,214.93,214.86,36.68]
[1757341967833,12.35191002,214.93,214.86,36.68]
[1757341968053,12.35191002,214.93,214.87,36.7]
[1757341968054,20.6731113,214.92,214.87,36.7]
[1757341968257,16.47638658,214.9,214.85,0.5]
[1757341968436,17.07291062,214.89,214.88,36.7]
[1757341968631,22.44645429,214.89,214.88,36.7]
[1757341968837,13.59559401,214.88,214.8,4.32099498]
[1757341969140,14.31559401,214.88,214.82,36.72]
[1757341970545,13.59559401,214.86,214.82,36.72]
[1757341970748,14.31559401,214.86,214.82,36.72]
[1757341971249,13.59559401,214.86,214.82,36.72]
[1757341971643,13.59559401,214.87,214.82,37.38]
[1757341971844,14.31559401,214.87,214.82,37.38]
[1757341972351,13.59559401,214.87,214.82,37.38]
[1757341972551,4.65419342,214.86,214.82,37.38]
[1757341972753,4.65419342,214.86,214.83,0.66]
[1757341972946,4.65419342,214.86,214.82,36.72]
[1757341973135,16.28967699,214.86,214.82,36.72]
[1757341973334,16.28967699,214.86,214.83,36.68]
[1757341974649,11.63548357,214.86,214.83,36.68]
[1757341974858,25.23107758,214.86,214.83,36.68]
[1757341975047,0.72,214.85,214.81,33.48]
[1757341975246,0.72,214.84,214.82,36.68]
[1757341975537,11.63548357,214.86,214.82,36.68]
[1757341975538,13.59559401,214.85,214.82,36.68]
[1757341975754,13.59559401,214.85,214.82,0.66]
[1757341976046,14.31559401,214.85,214.83,36.66]
[1757341976646,4.65462669,214.84,214.83,36.66]
[1757341977054,13.59559401,214.83,214.79,0.03]
[1757341977245,13.59559401,214.83,214.8,36.66]
[1757341977455,17.19638658,214.83,214.8,36.66]
[1757341977755,13.59559401,214.81,214.8,36.66]
[1757341978261,13.59559401,214.83,214.8,36.66]
[1757341978653,13.59559401,214.81,214.8,36.66]
[1757341979749,18.25087076,214.81,214.8,36.66]
[1757341980263,21.85166333,214.81,214.79,0.03]
[1757341980462,17.19638658,214.8,214.79,0.03]
[1757341981754,21.85188006,214.8,214.79,0.03]
[1757341982057,18.97108749,214.8,214.79,0.03]
[1757341982267,21.85188006,214.8,214.79,0.03]
[1757341982644,18.97108749,214.8,214.79,0.03]
[1757341982965,21.85188006,214.8,214.79,0.03]
[1757341983467,18.25108749,214.8,214.79,0.03]
[1757341983767,18.25108749,214.8,214.79,0.53]
[1757341985253,4.65549348,214.8,214.79,0.53]
[1757341985453,4.65526703,214.82,214.79,1.19]
[1757341985650,13.59559401,214.82,214.8,0.71]
[1757341985866,13.59559401,214.88,214.81,26.71]
[1757341986060,13.59559401,214.88,214.82,36.7]
[1757341986253,14.26559401,214.88,214.82,36.7]
[1757341986658,11.63494205,214.87,214.82,36.7]
[1757341986857,0.06,214.83,214.82,37.41]
[1757341987369,14.32559401,214.83,214.82,36.7]
[1757341987573,17.20638658,214.83,214.82,36.7]
[1757341987868,21.86122994,214.83,214.82,36.7]
[1757341988563,13.65559401,214.83,214.82,36.7]
[1757341988749,0.06,214.83,214.82,37.41]
[1757341989373,0.06,214.85,214.82,42.06506005]
[1757341989675,0.67,214.95,214.85,26.0]
[1757341989882,0.67,214.97,214.89,26.0]
[1757341990181,2.88079257,214.96,214.9,36.78]
[1757341990371,0.67,214.99,214.91,0.71]
[1757341990676,13.59559401,214.98,214.92,36.88]
[1757341990979,13.59559401,214.98,214.91,26.71]
[1757341991184,13.59559401,214.98,214.91,0.71]
[1757341991363,13.59559401,214.96,214.92,36.9]
[1757341991794,0.67,214.96,214.9,26.71]
[1757341992082,13.59559401,214.94,214.9,26.0]
[1757341992380,13.59559401,214.92,214.91,34.08]
[1757341992564,13.59559401,214.94,214.91,34.08]
[1757341993678,13.59559401,214.94,214.91,34.79]
[1757341993883,18.2481374,214.94,214.92,0.71]
[1757341994264,18.2481374,214.94,214.91,34.08]
[1757341994473,13.59559401,214.95,214.92,0.71]
[1757341994664,0.67,215.01,214.94,26.0]
[1757341994964,13.59559401,215.0,214.94,26.0]
[1757341995376,13.59559401,215.0,214.94,26.71]
[1757341995961,13.59559401,214.98,214.95,36.88]
[1757341996161,13.59559401,214.98,214.94,0.71]
[1757341996361,13.59559401,214.98,214.95,36.88]
[1757341996876,14.26559401,214.98,214.95,36.88]
[1757341997084,13.59559401,214.98,214.95,36.88]
[1757341998079,13.59559401,214.96,214.95,36.88]
[1757341998281,13.59559401,214.96,214.93,26.0]
[1757341998482,0.67,215.0,214.92,26.0]
[1757341998483,18.24697314,214.99,214.92,26.0]
[1757341998785,29.87542097,214.99,214.94,37.57]
[1757341999083,29.87542097,214.99,214.95,0.71]
[1757341999887,29.87542097,214.99,214.92,0.71]
[1757342000096,29.87542097,214.99,214.93,36.84]
[1757342000097,13.59559401,214.97,214.93,36.84]
[1757342000266,14.26559401,214.97,214.94,36.84]
[1757342000466,4.50111344,214.98,214.89,0.71]
[1757342000467,13.59559401,214.95,214.89,0.71]
[1757342000682,13.59559401,214.95,214.93,26.0]
[1757342000880,18.09670745,214.98,214.94,36.84]
[1757342001069,13.59559401,214.96,214.94,36.84]
[1757342001794,13.59559401,214.98,214.94,37.55]
[1757342001967,13.59559401,214.99,214.94,37.55]
[1757342002576,13.59559401,214.99,214.94,36.84]
[1757342002779,14.26559401,214.99,214.94,37.55]
[1757342003166,4.65159549,214.98,214.94,37.55]
[1757342003362,4.65159549,214.98,214.94,36.84]
[1757342003583,13.59559401,214.97,214.94,0.71]
[1757342003770,13.59559401,214.97,214.95,37.55]
[1757342003966,13.59559401,214.97,214.95,36.84]
[1757342004176,4.65159549,214.98,214.95,36.84]
[1757342004494,72.9,214.99,214.96,0.71]
[1757342004495,77.55139443,214.99,214.96,0.71]
[1757342004699,72.9,214.99,214.96,0.71]
[1757342004869,77.5513828,214.99,214.96,0.71]
[1757342005388,77.5513828,214.99,214.97,36.82]
[1757342005701,4.6513828,214.99,214.97,36.82]
[1757342005990,4.65117408,215.0,214.98,0.71]
[1757342006191,25.22223772,215.03,214.97,36.82]
[1757342006192,13.59559401,215.01,214.99,0.71]
[1757342006389,13.59559401,215.01,214.97,37.53]
[1757342007071,0.06,214.99,214.97,37.53]
[1757342007501,13.65559401,214.99,214.94,0.71]
[1757342007672,13.65559401,214.99,214.95,63.53]
[1757342007878,13.65559401,214.99,214.96,37.53]
[1757342008074,0.06,214.99,214.96,37.53]
[1757342008276,0.06,214.99,214.98,26.0]
[1757342008786,0.06,214.99,214.98,26.71]
[1757342009177,0.06,214.99,214.98,37.75]
[1757342009377,0.06,214.99,214.98,0.71]
[1757342009596,0.06,214.99,214.98,37.75]
[1757342011283,0.06,214.99,214.98,37.04]
[1757342011490,0.06,214.99,214.98,37.02]
[1757342012209,0.06,214.99,214.95,26.0]
[1757342012500,0.06,214.99,214.98,37.02]
[1757342013700,0.06,214.99,214.98,42.38159549]
[1757342013899,0.06,214.99,214.98,37.73]
[1757342014107,0.06,214.99,214.98,37.02]
[1757342014291,0.06,214.99,214.98,37.73]
[1757342015414,0.06,214.99,214.98,42.38159549]
[1757342015703,0.06,214.99,214.98,37.73]
[1757342016080,0.06,214.99,214.98,42.38159549]
[1757342017911,0.06,214.99,214.98,37.73]
[1757342018298,0.06,214.99,214.98,37.02]
[1757342018607,0.06,214.99,214.98,36.96]
[1757342019384,0.78,214.99,214.93,0.72]
[1757342019585,5.43159346,214.99,214.94,36.94]
[1757342019801,5.43159346,214.99,214.94,0.72]
[1757342020013,0.06,214.99,214.98,26.0]
[1757342020215,0.06,214.99,214.98,62.92]
[1757342020517,4.71137913,214.99,214.98,62.92]
[1757342020818,5.43137913,214.99,214.98,62.92]
[1757342021024,4.71137913,214.99,214.98,62.92]
[1757342021231,4.71137913,214.99,214.98,36.92]
[1757342021735,0.06,214.99,214.98,36.92]
[1757342022228,0.78,214.99,214.98,36.92]
[1757342022398,0.06,214.99,214.98,36.92]
[1757342022715,0.78,214.99,214.98,36.9]
[1757342023517,0.06,214.99,214.98,36.9]
[1757342024392,0.06,214.99,214.98,63.62]
[1757342024605,0.06,214.99,214.98,42.27159549]
[1757342025007,0.06,214.99,214.98,37.62]